bitfinex-derivatives/quotes_BTCF0:USTF0_20260113
["timestamp","ask_amount","ask_price","bid_price","bid_amount"]
[1768315206634,0.00986253,92799.0,92767.0,0.09708]
[1768315206816,0.107866,92804.0,92776.0,0.09241047]
[1768315207126,0.107866,92804.0,92775.0,0.010789]
[1768315207127,0.010785,92811.0,92784.0,0.09241047]
[1768315207330,0.09708,92816.0,92797.0,0.010786]
[1768315207626,0.09708,92816.0,92784.0,0.00968805]
[1768315207627,0.09908,92816.0,92798.0,0.09241047]
[1768315207827,1.5,92815.0,92798.0,0.09241047]
[1768315208724,1.510784,92815.0,92798.0,0.09241047]
[1768315209524,1.5,92815.0,92790.0,0.09708]
[1768315211224,1.5,92815.0,92791.0,0.010787]
[1768315211621,1.5,92815.0,92792.0,0.09241047]
[1768315212624,1.59708,92815.0,92792.0,0.10319747]
[1768315212825,1.5,92815.0,92792.0,0.09241047]
[1768315213343,0.002,92816.0,92793.0,0.00968805]
[1768315213629,0.09708,92829.0,92800.0,0.09241047]
[1768315213826,1.5,92828.0,92801.0,0.09708]
[1768315214229,1.5,92828.0,92808.0,0.010785]
[1768315214633,1.5,92828.0,92802.0,0.00968805]
[1768315215035,1.5,92828.0,92805.0,0.010786]
[1768315215630,1.5,92828.0,92801.0,0.09708]
[1768315215934,0.010783,92827.0,92801.0,0.09708]
[1768315216140,1.5,92828.0,92788.0,0.09241047]
[1768315216141,0.010785,92814.0,92788.0,0.09241047]
[1768315216428,0.09708,92817.0,92788.0,0.09241047]
[1768315216618,1.5,92828.0,92786.0,0.09708]
[1768315216619,1.5,92828.0,92797.0,0.01988548]
[1768315216822,0.010778,92870.0,92819.0,0.0917498]
[1768315216823,0.09708,92847.0,92819.0,0.0917498]
[1768315217020,0.09708,92858.0,92831.0,0.0917498]
[1768315217242,1.5,92857.0,92835.0,0.0917498]
[1768315217421,0.09708,92858.0,92838.0,0.010782]
[1768315217621,0.09708,92858.0,92837.0,0.0917498]
[1768315217830,0.09708,92858.0,92829.0,0.10617948]
[1768315217831,0.00236904,92865.0,92846.0,0.0917498]
[1768315218024,0.00236904,92865.0,92849.0,0.01078]
[1768315218226,0.00236904,92865.0,92842.0,0.0917498]
[1768315218417,0.00236904,92865.0,92841.0,0.09708]
[1768315218418,0.00236904,92865.0,92845.0,0.010781]
[1768315218622,0.00236904,92865.0,92845.0,0.0917498]
[1768315218823,0.0053837,92873.0,92844.0,0.10084928]
[1768315219426,0.010778,92869.0,92844.0,0.0917498]
[1768315219728,0.0053837,92873.0,92844.0,0.0917498]
[1768315219935,0.15602373,92870.0,92841.0,0.09708]
[1768315220234,0.010778,92867.0,92834.0,0.1025318]
[1768315220733,0.0053837,92873.0,92834.0,0.1025318]
[1768315220734,0.010779,92863.0,92834.0,0.1025318]
[1768315220929,0.97064,92862.0,92837.0,0.010782]
[1768315221133,0.09704,92861.0,92837.0,0.1025318]
[1768315221334,0.010778,92872.0,92844.0,0.010781]
[1768315221529,0.8736,92865.0,92840.0,0.010781]
[1768315221735,0.8736,92865.0,92837.0,0.0917498]
[1768315221736,0.010779,92862.0,92837.0,0.0917498]
[1768315222033,0.0053837,92873.0,92846.0,0.010781]
[1768315222234,0.0053837,92873.0,92854.0,0.01078]
[1768315222427,0.0053837,92873.0,92841.0,0.0917498]
[1768315222428,0.09704,92872.0,92856.0,0.0917498]
[1768315222735,0.09704,92872.0,92848.0,0.010781]
[1768315222927,0.09704,92872.0,92853.0,0.01078]
[1768315223129,0.09704,92872.0,92853.0,0.1025298]
[1768315223331,0.09704,92872.0,92853.0,0.0917498]
[1768315223538,0.14524573,92870.0,92853.0,0.0917498]
[1768315223837,0.09704,92869.0,92843.0,0.010781]
[1768315224136,0.09704,92869.0,92841.0,0.00909948]
[1768315224137,0.102818,92869.0,92841.0,0.01988048]
[1768315224326,0.09204,92869.0,92841.0,0.00909948]
[1768315224724,0.09204,92869.0,92789.0,0.010787]
[1768315224725,0.01078,92856.0,92826.0,0.09704]
[1768315224924,0.09704,92856.0,92831.0,0.010783]
[1768315225132,0.09704,92856.0,92824.0,0.09704]
[1768315225335,0.10782,92856.0,92825.0,0.010783]
[1768315225538,0.01078,92853.0,92827.0,0.010783]
[1768315225738,0.09704,92856.0,92827.0,0.010783]
[1768315225937,0.01078,92853.0,92824.0,0.09704]
[1768315226134,0.09521497,92855.0,92820.0,0.0917498]
[1768315226538,0.09521497,92855.0,92825.0,0.010783]
[1768315226733,0.01078,92851.0,92821.0,0.010784]
[1768315227040,0.09521497,92849.0,92820.0,0.1025338]
[1768315227235,0.09521497,92849.0,92823.0,0.010783]
[1768315227430,0.09521497,92849.0,92811.0,0.00909948]
[1768315227431,0.010781,92844.0,92814.0,0.010784]
[1768315227641,0.09704,92843.0,92814.0,0.010784]
[1768315227934,0.09704,92843.0,92805.0,0.00237057]
[1768315227935,0.09978691,92842.0,92805.0,0.00237057]
[1768315228133,0.010784,92823.0,92805.0,0.00237057]
[1768315228330,0.09704,92823.0,92805.0,0.00237057]
[1768315228744,0.1476285,92822.0,92805.0,0.00237057]
[1768315229040,0.24284347,92822.0,92791.0,0.0917498]
[1768315229240,0.09521497,92822.0,92791.0,0.0917498]
[1768315229434,0.09704,92835.0,92810.0,0.010785]
[1768315229738,0.09521497,92829.0,92801.0,0.09704]
[1768315229948,0.09521497,92827.0,92802.0,0.010786]
[1768315230238,0.09521497,92827.0,92801.0,0.09704]
[1768315230637,0.09521497,92822.0,92783.0,0.10084928]
[1768315230833,0.010782,92836.0,92740.0,0.19315458]
[1768315230834,0.00393733,92817.0,92773.0,0.00909948]
[1768315231035,0.09704,92821.0,92773.0,0.00909948]
[1768315231036,0.09521497,92809.0,92773.0,0.00909948]
[1768315231236,0.09704,92814.0,92790.0,0.0917498]
[1768315231736,0.09521497,92825.0,92790.0,0.0917498]
[1768315231934,8.638e-05,92824.0,92791.0,0.00909948]
[1768315232131,8.638e-05,92824.0,92796.0,0.0917498]
[1768315232344,8.638e-05,92824.0,92791.0,0.10776442]
[1768315232345,0.09704,92848.0,92821.0,0.010784]
[1768315232541,0.09521497,92856.0,92817.0,0.0917498]
[1768315232542,0.09704,92847.0,92817.0,0.0917498]
[1768315232736,0.09521497,92856.0,92817.0,0.0917498]
[1768315232737,0.09704,92846.0,92831.0,0.010782]
[1768315232944,0.09704,92848.0,92827.0,0.010783]
[1768315233143,0.09704,92848.0,92822.0,0.010784]
[1768315233440,0.010781,92846.0,92821.0,0.0908498]
[1768315233640,0.09521497,92846.0,92814.0,0.11849909]
[1768315233838,0.09521497,92842.0,92815.0,0.09704]
[1768315234043,0.09521497,92842.0,92816.0,0.09704]
[1768315234230,0.09521497,92842.0,92817.0,0.09704]
[1768315234426,0.09704,92847.0,92817.0,0.09704]
[1768315234427,0.09704,92847.0,92823.0,0.010783]
[1768315234632,0.09521497,92856.0,92829.0,0.010783]
[1768315234840,0.01078,92854.0,92821.0,0.010784]
[1768315235144,0.09704,92853.0,92825.0,0.09896313]
[1768315235332,0.09704,92857.0,92838.0,0.010782]
[1768315235637,0.09704,92856.0,92843.0,0.010781]
[1768315235838,0.09704,92861.0,92842.0,0.010781]
[1768315236233,0.09704,92861.0,92830.0,0.00921737]
[1768315236234,0.10236616,92873.0,92835.0,0.09896313]
[1768315236428,0.09704,92872.0,92851.0,0.01078]
[1768315236640,0.09704,92872.0,92847.0,0.010781]
[1768315236943,0.09704,92872.0,92850.0,0.01078]
[1768315237138,0.09698246,92867.0,92827.0,0.09896313]
[1768315237344,0.010778,92866.0,92834.0,0.010782]
[1768315237640,0.09698246,92866.0,92834.0,0.010782]
[1768315238031,0.010779,92863.0,92834.0,0.010782]
[1768315238232,0.09698246,92864.0,92834.0,0.010782]
[1768315238432,0.09698246,92864.0,92832.0,0.09704]
[1768315239343,0.09698246,92852.0,92821.0,0.09704]
[1768315239532,0.09704,92851.0,92821.0,0.09704]
[1768315239737,0.09704,92851.0,92822.0,0.09896313]
[1768315240137,0.09704,92851.0,92829.0,0.010783]
[1768315240337,0.09704,92851.0,92825.0,0.09896313]
[1768315240637,0.09704,92851.0,92836.0,0.010782]
[1768315240839,0.09698246,92863.0,92831.0,0.09896313]
[1768315241035,0.09704,92857.0,92848.0,0.010781]
[1768315241238,0.09704,92865.0,92840.0,0.00921737]
[1768315241441,0.09704,92865.0,92843.0,0.09896313]
[1768315241741,0.09704,92865.0,92850.0,0.01078]
[1768315241939,0.09704,92865.0,92843.0,0.09896313]
[1768315242238,0.0053837,92873.0,92858.0,0.010779]
[1768315242442,0.0053837,92873.0,92860.0,0.010779]
[1768315242632,0.0053837,92873.0,92853.0,0.09896313]
[1768315242633,0.09704,92872.0,92842.0,0.00921737]
[1768315242827,0.09704,92872.0,92855.0,0.01078]
[1768315243031,0.09704,92872.0,92845.0,0.09896313]
[1768315243233,0.09704,92872.0,92850.0,0.01078]
[1768315243542,0.09704,92872.0,92846.0,0.010781]
[1768315243739,0.09704,92872.0,92848.0,0.09896313]
[1768315243943,5e-07,92871.0,92848.0,0.09896313]
[1768315244239,0.0053837,92873.0,92844.0,0.00921737]
[1768315244240,7e-07,92873.0,92865.0,0.10974213]
[1768315244434,7e-07,92873.0,92868.0,0.010778]
[1768315244626,7e-07,92873.0,92862.0,0.010779]
[1768315244827,7e-07,92873.0,92830.0,0.22347822]
[1768315244828,0.09698316,92873.0,92842.0,0.09896313]
[1768315245038,0.09698316,92873.0,92843.0,0.09896313]
[1768315245344,7e-07,92873.0,92851.0,0.01078]
[1768315245644,7e-07,92873.0,92845.0,0.09896313]
[1768315245645,7e-07,92873.0,92847.0,0.107821]
[1768315245839,7e-07,92873.0,92847.0,0.09704]
[1768315246233,7e-07,92873.0,92819.0,0.13148505]
[1768315246234,0.01078,92857.0,92835.0,0.09896313]
[1768315246433,0.010779,92860.0,92835.0,0.09896313]
[1768315246630,0.09704,92861.0,92835.0,0.09896313]
[1768315246932,0.09698246,92860.0,92834.0,0.010782]
[1768315247136,0.01078,92856.0,92829.0,0.010783]
[1768315247336,0.09704,92861.0,92827.0,0.09896313]
[1768315247337,0.09698246,92858.0,92827.0,0.09896313]
[1768315247732,0.097,92857.0,92827.0,0.09896313]
[1768315247937,0.097,92857.0,92834.0,0.010782]
[1768315248136,0.097,92857.0,92827.0,0.09896313]
[1768315248341,0.01078,92854.0,92827.0,0.09896313]
[1768315248534,0.097,92857.0,92827.0,0.09896313]
[1768315248535,0.01078,92852.0,92827.0,0.09896313]
[1768315248838,0.01078,92851.0,92826.0,8.043e-05]
[1768315249038,0.09698246,92851.0,92826.0,8.043e-05]
[1768315249245,0.09698246,92851.0,92828.0,0.010783]
[1768315249642,0.09698246,92851.0,92826.0,8.043e-05]
[1768315249838,0.09698246,92867.0,92846.0,0.010781]
[1768315250036,0.09698246,92867.0,92830.0,0.09896313]
[1768315250233,0.097,92866.0,92833.0,0.09896313]
[1768315250438,0.010779,92865.0,92833.0,0.09896313]
[1768315250748,0.097,92866.0,92833.0,0.09896313]
[1768315251244,0.097,92866.0,92844.0,0.010781]
[1768315251439,0.19398246,92866.0,92835.0,0.010782]
[1768315251635,0.10776146,92863.0,92837.0,0.010782]
[1768315251843,0.10043875,92854.0,92826.0,8.043e-05]
[1768315252044,0.09698246,92850.0,92826.0,8.043e-05]
[1768315252239,0.09698246,92850.0,92835.0,0.010782]
[1768315252547,0.09698246,92850.0,92826.0,8.043e-05]
[1768315252548,0.010776,92888.0,92853.0,0.00921737]
[1768315252847,0.09698246,92884.0,92850.0,0.097]
[1768315253048,0.09698246,92884.0,92866.0,0.010778]
[1768315253549,0.09698246,92884.0,92859.0,0.010779]
[1768315253749,0.09698246,92884.0,92854.0,0.01078]
[1768315253940,0.09698246,92884.0,92852.0,0.09896313]
[1768315253941,0.09698246,92884.0,92865.0,0.010778]
[1768315254141,0.09698246,92884.0,92852.0,0.09896313]
[1768315254340,0.09698246,92882.0,92852.0,0.09896313]
[1768315254644,0.010777,92880.0,92857.0,0.010779]
[1768315254843,0.097,92886.0,92864.0,0.010779]
[1768315255042,0.097,92886.0,92866.0,0.010778]
[1768315255252,0.097,92886.0,92856.0,0.09896313]
[1768315255454,0.097,92886.0,92864.0,0.010779]
[1768315255745,0.097,92886.0,92866.0,0.010778]
[1768315255951,0.097,92886.0,92870.0,0.010778]
[1768315256250,0.097,92886.0,92865.0,0.010779]
[1768315256947,0.097,92886.0,92857.0,0.010779]
[1768315256948,0.09698246,92880.0,92857.0,0.010779]
[1768315257154,0.09698246,92880.0,92860.0,0.010779]
[1768315257350,0.097,92872.0,92851.0,0.01078]
[1768315257555,0.010779,92864.0,92846.0,0.09896313]
[1768315257850,0.10776046,92871.0,92837.0,0.09896313]
[1768315258150,0.09698246,92871.0,92854.0,0.01078]
[1768315258350,0.097,92870.0,92845.0,0.09896313]
[1768315258550,0.09698246,92882.0,92845.0,0.09896313]
[1768315258551,0.09698246,92882.0,92863.0,0.010779]
[1768315258854,0.09698246,92882.0,92865.0,0.010779]
[1768315259052,0.0970007,92873.0,92865.0,0.010779]
[1768315259247,7e-07,92873.0,92854.0,0.01078]
[1768315259452,7e-07,92873.0,92855.0,0.01078]
[1768315259759,7e-07,92873.0,92850.0,0.01078]
[1768315259760,0.010778,92872.0,92850.0,0.01078]
[1768315260353,7e-07,92873.0,92852.0,0.01078]
[1768315260657,0.010778,92869.0,92844.0,0.09896313]
[1768315260847,7e-07,92873.0,92853.0,0.01078]
[1768315261046,7e-07,92873.0,92870.0,0.010778]
[1768315261251,0.097,92883.0,92871.0,0.010778]
[1768315261440,0.097,92882.0,92854.0,0.097]
[1768315261752,0.10775846,92884.0,92864.0,0.010779]
[1768315261942,0.10775846,92884.0,92872.0,0.010778]
[1768315261943,0.09698246,92884.0,92872.0,0.010778]
[1768315262143,0.09698246,92884.0,92846.0,0.010781]
[1768315262144,0.00538254,92893.0,92878.0,0.010777]
[1768315262458,0.01067647,92905.0,92881.0,0.09896313]
[1768315262655,0.01067647,92905.0,92869.0,0.010778]
[1768315262656,0.01067647,92905.0,92895.0,0.09896313]
[1768315263040,0.01067647,92905.0,92884.0,0.00921737]
[1768315263041,0.01067647,92905.0,92894.0,0.097]
[1768315263347,0.01067647,92905.0,92896.0,0.010775]
[1768315263548,0.01067647,92905.0,92891.0,0.09896313]
[1768315263950,0.01067647,92905.0,92880.0,0.09896313]
[1768315264155,0.01067647,92905.0,92888.0,0.010776]
[1768315264456,0.01067647,92905.0,92881.0,0.097]
[1768315264457,0.010775,92898.0,92874.0,0.09896313]
[1768315264651,0.010774,92901.0,92875.0,0.107777]
[1768315264966,0.09449288,92900.0,92868.0,0.097]
[1768315265144,0.010777,92879.0,92860.0,0.097]
[1768315265457,0.010775,92893.0,92846.0,0.38804]
[1768315265458,0.09449288,92881.0,92848.0,0.097]
[1768315265658,0.010777,92879.0,92848.0,0.097]
[1768315265952,0.097,92880.0,92848.0,0.097]
[1768315266155,0.09449288,92874.0,92844.0,0.09134794]
[1768315266355,0.09449288,92871.0,92844.0,0.010781]
[1768315266547,0.09449288,92871.0,92841.0,0.097]
[1768315266754,0.09449288,92871.0,92826.0,8.043e-05]
[1768315266755,0.09449288,92862.0,92834.0,0.010782]
[1768315266952,0.19149288,92861.0,92826.0,8.043e-05]
[1768315267155,0.09449288,92856.0,92826.0,8.043e-05]
[1768315267357,0.09449288,92856.0,92826.0,0.01086343]
[1768315267558,0.09449288,92856.0,92837.0,0.010782]
[1768315267859,0.09449288,92856.0,92826.0,8.043e-05]
[1768315267860,0.00998046,92861.0,92826.0,0.09142837]
[1768315268054,0.09449288,92866.0,92847.0,0.010781]
[1768315268249,0.097,92865.0,92832.0,0.09134794]
[1768315268456,0.097,92865.0,92834.0,0.09134794]
[1768315268654,0.00998046,92873.0,92851.0,0.01078]
[1768315268853,0.00998046,92873.0,92839.0,0.09134794]
[1768315269054,0.097,92872.0,92839.0,0.09134794]
[1768315269260,0.010779,92866.0,92839.0,0.09134794]
[1768315269457,0.010779,92863.0,92839.0,0.09134794]
[1768315269647,0.010779,92863.0,92835.0,0.010782]
[1768315269648,0.01078,92852.0,92831.0,0.097]
[1768315269959,0.097,92851.0,92822.0,0.097]
[1768315270259,0.09449288,92859.0,92840.0,0.010781]
[1768315270449,0.097,92859.0,92848.0,0.010781]
[1768315270645,0.00998046,92864.0,92848.0,0.010781]
[1768315270852,0.09449288,92869.0,92839.0,0.09134794]
[1768315271062,0.010777,92879.0,92841.0,0.09134794]
[1768315271254,0.097,92878.0,92845.0,0.09134794]
[1768315271564,0.09449288,92881.0,92845.0,0.09134794]
[1768315271565,0.09449288,92881.0,92854.0,0.01078]
[1768315271861,0.09449288,92881.0,92848.0,0.09134794]
[1768315272063,0.107777,92880.0,92855.0,0.01078]
[1768315272256,0.010774,92904.0,92840.0,0.010781]
[1768315272257,0.09449288,92904.0,92869.0,0.09134794]
[1768315272462,0.010774,92902.0,92878.0,0.010777]
[1768315272656,0.09449288,92902.0,92876.0,0.010777]
[1768315272959,0.09449288,92902.0,92869.0,0.09134794]
[1768315273146,0.09449288,92902.0,92875.0,0.010777]
[1768315273346,0.10526688,92902.0,92875.0,0.010777]
[1768315273660,0.10526688,92902.0,92869.0,0.09134794]
[1768315273661,0.09449288,92890.0,92858.0,0.00921509]
[1768315273851,0.097,92889.0,92859.0,0.09134794]
[1768315274046,0.097,92889.0,92865.0,0.010779]
[1768315274249,0.097,92889.0,92847.0,0.010781]
[1768315274250,0.010779,92864.0,92827.0,0.00921509]
[1768315274550,0.00073297,92856.0,92826.0,8.043e-05]
[1768315274757,0.09449288,92850.0,92826.0,8.043e-05]
[1768315274951,0.09449288,92850.0,92829.0,0.010783]
[1768315275147,0.097,92849.0,92826.0,8.043e-05]
[1768315275350,0.010777,92875.0,92826.0,8.043e-05]
[1768315275351,0.09449288,92862.0,92841.0,0.010781]
[1768315275565,0.097,92861.0,92826.0,0.00929552]
[1768315275855,0.097,92861.0,92844.0,0.010781]
[1768315276061,0.09449288,92862.0,92844.0,0.010781]
[1768315276263,0.00099927,92867.0,92826.0,0.00929552]
[1768315276264,0.19229345,92861.0,92826.0,0.00929552]
[1768315276560,0.19229345,92861.0,92787.0,0.398828]
[1768315276561,0.09529345,92840.0,92805.0,0.00944559]
[1768315276765,0.09529345,92840.0,92803.0,0.09328803]
[1768315276766,0.010783,92825.0,92803.0,0.09328803]
[1768315277063,0.097,92824.0,92803.0,0.09328803]
[1768315277253,0.09529345,92836.0,92803.0,0.09328803]
[1768315277254,0.097,92823.0,92803.0,0.09047219]
[1768315277565,0.00099927,92848.0,92804.0,0.00944559]
[1768315277566,0.09529345,92847.0,92804.0,0.00944559]
[1768315277759,0.09529345,92847.0,92817.0,0.010784]
[1768315277760,0.010781,92844.0,92817.0,0.010784]
[1768315277960,0.097,92846.0,92820.0,0.010784]
[1768315278157,0.09529345,92847.0,92805.0,0.00944559]
[1768315278158,0.09529345,92847.0,92824.0,0.010783]
[1768315278360,0.097,92845.0,92808.0,0.00944559]
[1768315278854,0.097,92845.0,92814.0,0.00944559]
[1768315279060,0.10607445,92844.0,92804.0,0.097]
[1768315279258,0.010781,92841.0,92805.0,0.20100834]
[1768315279565,0.01078,92850.0,92824.0,0.010783]
[1768315279762,0.09529345,92852.0,92817.0,0.09328803]
[1768315279969,0.010781,92848.0,92822.0,0.010783]
[1768315280260,0.09529345,92852.0,92817.0,0.09328803]
[1768315280461,0.09529345,92863.0,92837.0,0.010782]
[1768315280660,0.19229345,92862.0,92833.0,0.09328803]
[1768315280862,0.09529345,92853.0,92826.0,0.010783]
[1768315281051,0.09529345,92853.0,92827.0,0.010783]
[1768315281257,0.09529345,92853.0,92818.0,0.097]
[1768315281258,0.097,92852.0,92819.0,0.09328803]
[1768315281458,0.097,92852.0,92819.0,0.10273362]
[1768315281863,0.09529345,92853.0,92834.0,0.010782]
[1768315282061,0.097,92852.0,92834.0,0.010782]
[1768315282261,0.09529345,92853.0,92819.0,0.10273362]
[1768315282463,0.097,92852.0,92831.0,0.010782]
[1768315283263,0.09529345,92849.0,92824.0,0.010783]
[1768315283564,0.097,92852.0,92819.0,0.10273362]
[1768315283759,0.097,92852.0,92836.0,0.010782]
[1768315284070,0.010775,92895.0,92839.0,0.010782]
[1768315284071,0.097,92851.0,92839.0,0.010782]
[1768315284362,0.097,92850.0,92827.0,0.10273362]
[1768315284565,0.010779,92864.0,92827.0,0.10273362]
[1768315284566,0.097,92853.0,92827.0,0.10273362]
[1768315285065,0.097,92853.0,92818.0,0.097]
[1768315285260,0.097,92853.0,92830.0,0.010783]
[1768315285663,0.19229345,92853.0,92832.0,0.010782]
[1768315286060,0.19229345,92853.0,92835.0,0.010782]
[1768315286266,0.09529345,92852.0,92820.0,0.15579844]
[1768315286464,0.09529345,92852.0,92833.0,0.010782]
[1768315286658,0.097,92851.0,92833.0,0.010782]
[1768315286967,0.19229345,92851.0,92833.0,0.010782]
[1768315287165,0.09651717,92849.0,92810.0,0.097]
[1768315287369,0.09529345,92845.0,92814.0,0.010785]
[1768315287558,0.09529345,92845.0,92826.0,0.010783]
[1768315287966,0.00122372,92835.0,92799.0,0.22477308]
[1768315288160,0.09529345,92831.0,92799.0,0.09328803]
[1768315288359,0.097,92834.0,92789.0,0.10273362]
[1768315288360,0.010783,92825.0,92789.0,0.10273362]
[1768315288562,0.010785,92808.0,92783.0,0.09328803]
[1768315288761,0.097,92807.0,92783.0,0.09328803]
[1768315289064,0.097,92806.0,92783.0,0.09328803]
[1768315289266,0.14501444,92820.0,92772.0,0.05784923]
[1768315289267,0.097,92805.0,92778.0,0.010789]
[1768315289453,0.14501444,92820.0,92778.0,0.010789]
[1768315289454,0.010784,92817.0,92782.0,0.09328803]
[1768315289655,0.010785,92814.0,92788.0,0.09328803]
[1768315290068,0.010785,92814.0,92789.0,0.010787]
[1768315290266,0.010785,92813.0,92778.0,0.10273362]
[1768315290469,0.097,92816.0,92782.0,0.10407603]
[1768315290661,0.097,92816.0,92794.0,0.010787]
[1768315290862,0.097,92816.0,92782.0,0.09328803]
[1768315290863,0.010784,92815.0,92790.0,0.010787]
[1768315291161,0.097,92816.0,92782.0,0.09328803]
[1768315291356,0.19229345,92816.0,92786.0,0.010788]
[1768315291674,0.09704,92815.0,92790.0,0.010787]
[1768315291868,0.09467019,92815.0,92785.0,0.010788]
[1768315292070,0.010784,92823.0,92799.0,0.010786]
[1768315292265,0.09704,92822.0,92799.0,0.010786]
[1768315292668,0.010784,92821.0,92799.0,0.010786]
[1768315293265,0.09704,92820.0,92803.0,0.010786]
[1768315293570,0.09704,92820.0,92779.0,0.107828]
[1768315293571,0.00153784,92848.0,92810.0,0.09328803]
[1768315293783,0.09704,92847.0,92821.0,0.010784]
[1768315294067,0.09704,92847.0,92810.0,0.09328803]
[1768315294275,0.14501444,92840.0,92810.0,0.09328803]
[1768315294473,0.00153784,92839.0,92810.0,0.09328803]
[1768315294774,0.010782,92834.0,92810.0,0.09328803]
[1768315294978,0.14501444,92830.0,92810.0,0.09328803]
[1768315295176,0.09704,92833.0,92810.0,0.09328803]
[1768315295474,0.00167978,92850.0,92815.0,0.09191763]
[1768315295772,0.09704,92849.0,92832.0,0.09191763]
[1768315295975,0.09704,92848.0,92832.0,0.09191763]
[1768315296272,0.09704,92848.0,92825.0,0.010783]
[1768315296572,0.09704,92848.0,92822.0,0.09191763]
[1768315296977,0.010781,92847.0,92824.0,0.010783]
[1768315297365,0.010781,92843.0,92822.0,0.09191763]
[1768315297761,0.00167978,92855.0,92822.0,0.09191763]
[1768315297762,0.03991466,92864.0,92822.0,0.09191763]
[1768315297977,0.01078,92856.0,92831.0,0.09191763]
[1768315298272,0.09704,92863.0,92832.0,0.010782]
[1768315298475,0.14501444,92860.0,92831.0,0.10269963]
[1768315298775,0.14501444,92860.0,92831.0,0.09191763]
[1768315298776,0.03991466,92859.0,92831.0,0.09191763]
[1768315298974,0.010781,92846.0,92831.0,0.09191763]
[1768315299166,0.09704,92849.0,92820.0,0.09191763]
[1768315299366,0.09704,92849.0,92830.0,0.010783]
[1768315299566,0.09704,92849.0,92831.0,0.010782]
[1768315299772,0.09704,92849.0,92823.0,0.09191763]
[1768315299969,0.09467096,92849.0,92823.0,0.09191763]
[1768315300381,0.10545196,92849.0,92828.0,0.010783]
[1768315300583,0.09467096,92849.0,92824.0,0.09191763]
[1768315300773,0.09467096,92849.0,92819.0,0.09704]
[1768315300774,0.03991466,92859.0,92829.0,0.09191763]
[1768315300965,0.09704,92858.0,92829.0,0.09191763]
[1768315301170,0.010782,92836.0,92819.0,0.18895763]
[1768315301487,0.010782,92836.0,92810.0,0.00913252]
[1768315301488,0.14501444,92860.0,92826.0,0.09191763]
[1768315301666,0.010781,92842.0,92830.0,0.09191763]
[1768315301976,0.010781,92841.0,92820.0,0.09191763]
[1768315302184,0.09704,92843.0,92823.0,0.010783]
[1768315302383,0.09704,92843.0,92820.0,0.09191763]
[1768315302976,0.09704,92843.0,92822.0,0.010784]
[1768315303171,0.09704,92843.0,92826.0,0.010783]
[1768315303373,0.09704,92843.0,92824.0,0.09191763]
[1768315303683,0.107821,92844.0,92824.0,0.09191763]
[1768315303875,0.09704,92844.0,92824.0,0.09191763]
[1768315304973,0.09704,92844.0,92795.0,0.3882]
[1768315304974,0.09449309,92829.0,92793.0,0.00913252]
[1768315305283,0.09704,92828.0,92793.0,0.00913252]
[1768315305484,0.09704,92828.0,92790.0,0.09704]
[1768315305485,0.09704,92828.0,92794.0,0.01991952]
[1768315305680,0.010785,92814.0,92794.0,0.00913252]
[1768315305878,0.010784,92821.0,92790.0,0.09704]
[1768315306081,0.010784,92818.0,92790.0,0.09704]
[1768315306277,0.010784,92815.0,92785.0,0.00913252]
[1768315306475,0.09704,92817.0,92775.0,0.00913252]
[1768315306676,0.09704,92817.0,92776.0,0.09704]
[1768315306677,0.010785,92808.0,92776.0,0.09704]
[1768315306987,0.23950753,92810.0,92776.0,0.09191763]
[1768315307175,0.010783,92831.0,92789.0,0.10270463]
[1768315307176,0.09704,92809.0,92789.0,0.10270463]
[1768315307373,0.107825,92808.0,92789.0,0.09191763]
[1768315307579,0.107825,92808.0,92775.0,0.09704]
[1768315307580,0.010786,92805.0,92782.0,0.010788]
[1768315307778,0.09704,92808.0,92777.0,0.09191763]
[1768315307979,0.09704,92808.0,92781.0,0.09191763]
[1768315308179,0.09704,92808.0,92775.0,0.09704]
[1768315308180,0.010785,92812.0,92791.0,0.010787]
[1768315308381,0.09704,92811.0,92791.0,0.010787]
[1768315308682,0.09704,92811.0,92794.0,0.010787]
[1768315308872,0.010784,92818.0,92794.0,0.010787]
[1768315309076,0.09704,92817.0,92797.0,0.010786]
[1768315309280,0.010784,92821.0,92784.0,0.010788]
[1768315309487,0.09449309,92835.0,92804.0,0.09191763]
[1768315309678,0.09449309,92835.0,92792.0,0.00913252]
[1768315309679,0.14501444,92820.0,92793.0,0.09191763]
[1768315309873,0.09704,92819.0,92793.0,0.09191763]
[1768315310079,0.14501444,92810.0,92783.0,0.09191763]
[1768315310489,0.09704,92819.0,92773.0,0.09191763]
[1768315310490,0.010786,92798.0,92773.0,0.09191763]
[1768315310686,0.09704,92797.0,92773.0,0.09191763]
[1768315310890,0.09704,92797.0,92768.0,0.00011318]
[1768315310891,0.14501444,92790.0,92768.0,0.00011318]
[1768315311190,0.010787,92791.0,92768.0,0.01090318]
[1768315311586,0.09704,92797.0,92768.0,0.00011318]
[1768315311886,0.09449309,92803.0,92769.0,0.09191763]
[1768315312083,0.09704,92802.0,92786.0,0.09191763]
[1768315312284,0.09449309,92820.0,92786.0,0.09191763]
[1768315312496,0.010783,92825.0,92769.0,0.20482243]
[1768315312497,0.14501444,92810.0,92774.0,0.09191763]
[1768315312691,0.09449309,92818.0,92776.0,0.09191763]
[1768315312891,0.09449309,92818.0,92775.0,0.00913252]
[1768315312892,0.09704,92817.0,92792.0,0.10105015]
[1768315313084,0.09704,92816.0,92795.0,0.09191763]
[1768315313280,0.09449309,92828.0,92795.0,0.09191763]
[1768315313281,0.09704,92815.0,92795.0,0.09191763]
[1768315313591,0.09704,92817.0,92804.0,0.010786]
[1768315313782,0.39906,92855.0,92800.0,0.09191763]
[1768315313783,0.09704,92821.0,92800.0,0.09191763]
[1768315314087,0.09704,92821.0,92803.0,0.09191763]
[1768315314290,0.010781,92841.0,92816.0,0.010784]
[1768315314490,0.09449309,92848.0,92804.0,0.00913252]
[1768315314491,0.09704,92840.0,92813.0,0.09191763]
[1768315314691,0.09704,92839.0,92813.0,0.09191763]
[1768315315191,0.09704,92839.0,92778.0,0.09493853]
[1768315315192,0.09704,92840.0,92822.0,0.09191763]
[1768315315392,0.09704,92840.0,92825.0,0.10270063]